fUSD/lending_fUSD_20250708
["ID","MTS","AMOUNT","RATE_DAILY","PERIOD"]
[370398677,1751997040422,-150.0,0.00024176,4]
[370398679,1751997040432,-349.54437681,0.00024205,2]
[370398681,1751997040441,-150.0,0.00024212,4]
[370398683,1751997040451,-150.0,0.00024214,4]
[370398685,1751997040460,-150.0,0.00024217,4]
[370398687,1751997040470,-150.0,0.00024217,4]
[370398689,1751997040479,-261.41504425,0.00024238,2]
[370398691,1751997040489,-600.0,0.00024243,2]
[370398693,1751997040498,-600.0,0.00024243,2]
[370398695,1751997040510,-600.0,0.00024243,2]
[370398697,1751997040519,-600.0,0.00024243,2]
[370398699,1751997040528,-108.78916362,0.00024243,2]
[370398975,1751997043125,-491.21083638,0.00024243,2]
[370398978,1751997043134,-257.25916362,0.00024243,2]
[370399227,1751997045909,-342.74083638,0.00024243,2]
[370399229,1751997045919,-600.0,0.00024243,2]
[370399231,1751997045929,-600.0,0.00024243,2]
[370399233,1751997045938,-600.0,0.00024243,2]
[370399234,1751997045949,-600.0,0.00024243,2]
[370399235,1751997045958,-184.72816586,0.00024243,2]
[370399236,1751997046084,-304.1903568,0.00024243,2]
[370399260,1751997208717,185.41,0.00026396,120]
[370399261,1751997209160,185.41,0.00029329,120]
[370399263,1751997373771,289.19016221,0.00029041,120]
[370399276,1751998019118,161.21,0.00013699,2]
[370399278,1751998109482,150.5,0.0002609,120]
[370399279,1751998109644,150.5,0.0002608,120]
[370399280,1751998109780,150.5,0.0002607,120]
[370399281,1751998110822,209.68,0.0002629,120]
[370399282,1751998141506,152.0,0.00029,120]
[370399283,1751998154109,840.60204493,0.00029041,120]
[370399284,1751998218972,150.0,0.00027534,120]
[370399285,1751998219222,182.71539364,0.00027671,120]
[370399286,1751998230214,150.5,0.0002609,120]
[370399287,1751998230689,150.5,0.0002608,120]
[370399288,1751998231141,150.5,0.0002607,120]
[370399290,1751998231953,-215.80669008,0.000219,2]
[370399291,1751998231963,-231.9336033,0.000219,2]
[370399292,1751998231976,-467.07277802,0.000219,2]
[370399293,1751998231986,-150.0,0.00022,2]
[370399294,1751998231996,-78.29335327,0.00022088,2]
[370399295,1751998232211,-73.09664673,0.00022088,2]
[370399296,1751998232221,-699.00638132,0.00022208,2]
[370399297,1751998232232,-666.0,0.00022209,2]
[370399298,1751998232242,-200.0,0.00022224,2]
[370399299,1751998232252,-150.0,0.00022239,2]
[370399300,1751998232264,-173.58,0.00022286,2]
[370399301,1751998232273,-154.64366203,0.00022365,2]
[370399302,1751998232294,-521.05633797,0.00022365,2]
[370399303,1751998232304,-213.17743681,0.00022365,2]
[370399304,1751998232316,-485.82894451,0.00022365,2]
[370399305,1751998232326,-173.58,0.00022398,2]
[370399306,1751998232336,-300.0,0.00022413,2]
[370399307,1751998232346,-1200.0,0.00022413,2]
[370399308,1751998232356,-150.0,0.00022414,2]
[370399309,1751998232366,-150.0,0.00022414,2]
[370399310,1751998232375,-150.0,0.00022414,2]
[370399312,1751998232386,-150.00000001,0.00022414,2]
[370399314,1751998232396,-150.0,0.00022414,2]
[370399316,1751998232405,-150.0,0.00022414,2]
[370399318,1751998232415,-150.0,0.00022414,2]
[370399320,1751998232425,-150.0,0.00022414,2]
[370399322,1751998232436,-150.0,0.00022414,2]
[370399324,1751998232445,-150.0,0.00022414,2]
[370399326,1751998232456,-150.0,0.00022414,2]
[370399327,1751998232466,-150.0,0.00022414,2]
[370399329,1751998232476,-150.0,0.0002247,2]
[370399331,1751998232485,-150.0,0.00022485,4]
[370399334,1751998232496,-150.0,0.00022492,4]
[370399336,1751998232506,-173.58,0.00022509,2]
[370399338,1751998232515,-150.0,0.00022513,4]
[370399340,1751998232526,-150.0,0.00022556,4]
[370399342,1751998232535,-150.0,0.00022569,4]
[370399344,1751998232545,-150.0,0.00022569,4]
[370399346,1751998232555,-150.0,0.00022613,4]
[370399348,1751998232564,-150.0,0.00022627,4]
[370399350,1751998232573,-150.0,0.00022647,4]
[370399352,1751998232582,-150.0,0.0002269,4]
[370399354,1751998232591,-150.0,0.00022698,4]
[370399356,1751998232601,-150.0,0.00022713,4]
[370399358,1751998232610,-150.0,0.00022725,4]
[370399360,1751998232619,-150.0,0.00022725,4]
[370399362,1751998232632,-150.0,0.0002276,4]
[370399374,1751998232935,-150.0,0.00022769,4]
[370399375,1751998232947,-150.0,0.00022803,4]
[370399376,1751998232959,-150.0,0.00022812,4]
[370399377,1751998232969,-150.0,0.00022829,4]
[370399378,1751998232979,-150.0,0.00022841,4]
[370399379,1751998232989,-150.0,0.00022881,4]
[370399380,1751998233000,-150.0,0.00022881,4]
[370399381,1751998233011,-150.0,0.00022898,4]
[370399382,1751998233020,-99.90230084,0.000229,8]
[370399383,1751998233034,-1111.20275981,0.000229,8]
[370399384,1751998233044,-150.0,0.00022912,4]
[370399385,1751998233053,-150.0,0.00022912,4]
[370399386,1751998233063,-150.0,0.00022912,4]
[370399387,1751998233072,-150.0,0.0002294,2]
[370399388,1751998233082,-150.0,0.00022958,4]
[370399389,1751998233091,-150.0,0.00022967,4]
[370399390,1751998233101,-150.0,0.00022967,4]
[370399391,1751998233110,-150.0,0.00022983,4]
[370399392,1751998233120,-200.0,0.00023,2]
[370399393,1751998233129,-150.0,0.00023011,4]
[370399394,1751998233138,-150.0,0.00023036,4]
[370399395,1751998233148,-142.84349566,0.00023036,4]
[370399396,1751998233160,-7.15650434,0.00023036,4]
[370399397,1751998233170,-150.0,0.00023054,4]
[370399398,1751998233179,-150.0,0.00023105,4]
[370399399,1751998233188,-1211.10506045,0.00023107,8]
[370399400,1751998233198,-150.0,0.00023111,4]
[370399401,1751998233208,-150.0,0.00023114,4]
[370399402,1751998233218,-150.0,0.00023125,4]
[370399403,1751998233227,-150.0,0.00023175,4]
[370399404,1751998233237,-150.0,0.00023192,4]
[370399405,1751998233247,-150.0,0.00023192,4]
[370399406,1751998233256,-150.0,0.00023196,4]
[370399407,1751998233266,-150.0,0.00023211,4]
[370399408,1751998233277,-38.39048841,0.00023244,4]
[370399409,1751998233289,-111.60951159,0.00023244,4]
[370399410,1751998233298,-150.0,0.00023244,4]
[370399411,1751998233308,-150.0,0.00023244,4]
[370399412,1751998233317,-150.0,0.00023268,4]
[370399413,1751998233327,-150.0,0.0002327,4]
[370399414,1751998233337,-150.0,0.0002331,4]
[370399415,1751998233349,-150.0,0.00023313,4]
[370399416,1751998233358,-249.24101713,0.00023314,9]
[370399417,1751998233369,-736.51963827,0.00023314,9]
[370399418,1751998233381,-225.34440505,0.00023314,9]
[370399419,1751998233391,-151.39,0.00023334,2]
[370399420,1751998233400,-93.13085773,0.00023336,2]
[370399526,1751998240788,-755.19637753,0.00023336,2]
[370399529,1751998240800,-280.5526,0.00023336,2]
[370399531,1751998240811,-2573.56016474,0.00023336,2]
[370399533,1751998240821,-150.0,0.00023339,4]
[370399535,1751998240830,-150.0,0.00023348,4]
[370399537,1751998240839,-150.0,0.00023348,4]
[370399539,1751998240848,-250.0,0.00023348,2]
[370399541,1751998240857,-133.76476439,0.00023354,2]
[370399543,1751998240868,-73.63523561,0.00023354,2]
[370399545,1751998240878,-1308.01,0.00023368,2]
[370399547,1751998240887,-693.09,0.0002338,2]
[370399549,1751998240896,-150.0,0.00023382,4]
[370399551,1751998240906,-150.0,0.0002341,4]
[370399553,1751998240915,-150.0,0.0002341,4]
[370399554,1751998240924,-150.0,0.0002341,4]
[370399555,1751998240933,-150.0,0.0002341,2]
[370399556,1751998240942,-1000.0,0.00023413,2]
[370399557,1751998240951,-150.0,0.00023425,4]
[370399558,1751998240960,-200.0,0.00023443,7]
[370399559,1751998240969,-251.22,0.00023446,2]
[370399560,1751998240979,-386.61,0.00023448,2]
[370399561,1751998240988,-150.0,0.00023451,4]
[370399562,1751998240997,-185.41,0.00023463,2]
[370399563,1751998241007,-150.0,0.00023481,4]
[370399564,1751998241016,-151.0,0.00023486,2]
[370399565,1751998241025,-300.0,0.00023486,2]
[370399566,1751998241035,-160.0,0.00023486,2]
[370399567,1751998241045,-109.99004569,0.00023486,2]
[370399568,1751998241057,-190.00995431,0.00023486,2]
[370399569,1751998241066,-300.0,0.00023486,2]
[370399570,1751998241076,-196.23004569,0.00023486,2]
[370399571,1751998241102,-103.76995431,0.00023486,2]
[370399572,1751998241112,-300.0,0.00023486,2]
[370399573,1751998241121,-300.0,0.00023486,2]
[370399574,1751998241131,-300.0,0.00023486,2]
[370399575,1751998241139,-300.0,0.00023486,2]
[370399576,1751998241149,-300.0,0.00023486,2]
[370399577,1751998241159,-128.42004569,0.00023486,2]
[370399578,1751998241199,-171.57995431,0.00023486,2]
[370399579,1751998241210,-151.0,0.00023486,2]
[370399580,1751998241220,-151.0,0.00023486,2]
[370399581,1751998241230,-151.0,0.00023486,2]
[370399582,1751998241239,-151.0,0.00023486,2]
[370399583,1751998241248,-151.0,0.00023486,2]
[370399584,1751998241258,-151.0,0.00023486,2]
[370399585,1751998241267,-151.0,0.00023486,2]
[370399586,1751998241277,-292.9049827,0.00023486,2]
[370399587,1751998241286,-463.56,0.000235,2]
[370399588,1751998241296,-463.56,0.000235,2]
[370399589,1751998241305,-812.39,0.000235,2]
[370399590,1751998241315,-463.56,0.000235,2]
[370399591,1751998241324,-812.39,0.000235,2]
[370399592,1751998241334,-812.39,0.000235,2]
[370399593,1751998241343,-463.56,0.000235,2]
[370399594,1751998241353,-463.56,0.000235,2]
[370399595,1751998241363,-812.39,0.000235,2]
[370399596,1751998241374,-463.21,0.000235,2]
[370399597,1751998241384,-150.0,0.00023503,4]
[370399598,1751998241394,-150.0,0.00023503,4]
[370399599,1751998241404,-150.0,0.00023509,4]
[370399600,1751998241415,-150.0,0.00023521,4]
[370399601,1751998241424,-150.0,0.00023521,4]
[370399602,1751998241434,-1211.10506045,0.00023521,9]
[370399603,1751998241444,-7158.0,0.00023528,2]
[370399604,1751998241455,-1478.0092376,0.00023528,2]
[370399605,1751998241472,-2633.9907624,0.00023528,2]
[370399606,1751998241482,-859.0,0.00023528,2]
[370399607,1751998241493,-754.0,0.00023528,2]
[370399608,1751998241505,-150.0,0.00023552,4]
[370399609,1751998241515,-150.0,0.00023581,4]
[370399610,1751998241524,-260.17,0.00023587,2]
[370399611,1751998241534,-150.0,0.0002359,4]
[370399612,1751998241544,-150.0,0.00023609,4]
[370399613,1751998241553,-150.0,0.00023623,4]
[370399614,1751998241564,-150.0,0.00023659,4]
[370399615,1751998241574,-150.0,0.00023659,4]
[370399616,1751998241584,-150.0,0.00023659,4]
[370399617,1751998241595,-150.0,0.00023659,4]
[370399618,1751998241604,-150.0,0.00023694,4]
[370399619,1751998241614,-150.0,0.00023709,4]
[370399620,1751998241623,-1211.10506045,0.00023728,9]
[370399621,1751998241635,-150.0,0.00023728,4]
[370399622,1751998241645,-150.0,0.00023737,4]
[370399623,1751998241655,-150.0,0.00023766,4]
[370399624,1751998241664,-150.0,0.00023797,4]
[370399625,1751998241674,-150.0,0.00023797,4]
[370399626,1751998241683,-150.0,0.00023808,4]
[370399627,1751998241692,-150.0,0.00023815,4]
[370399628,1751998241702,-150.0,0.00023815,4]
[370399629,1751998241715,-294.35,0.00023836,2]
[370399630,1751998241724,-150.0,0.00023837,4]
[370399631,1751998241733,-500.0,0.00023863,2]
[370399632,1751998241742,-150.0,0.00023866,4]
[370399633,1751998241751,-150.0,0.0002388,2]
[370399634,1751998241760,-150.0,0.00023892,4]
[370399635,1751998241770,-150.0,0.00023908,4]
[370399636,1751998241779,-150.0,0.00023908,4]
[370399637,1751998241788,-150.0,0.00023908,4]
[370399638,1751998241798,-1211.10506045,0.00023934,10]
[370399639,1751998241807,-150.0,0.00023936,4]
[370399640,1751998241816,-150.0,0.0002397,4]
[370399641,1751998241826,-150.0,0.0002397,4]
[370399642,1751998241835,-150.0,0.00023979,4]
[370399643,1751998241846,-2000.0,0.00024,2]
[370399644,1751998241856,-150.0,0.00024005,4]
[370399645,1751998241866,-129.01563877,0.00024008,4]
[370399651,1751998243365,-20.98436123,0.00024008,4]
[370399652,1751998243376,-151.0,0.00024034,2]
[370399653,1751998243386,-164.22,0.00024047,2]
[370399654,1751998243395,-150.0,0.00024048,4]
[370399655,1751998243405,-150.0,0.0002405,4]
[370399656,1751998243415,-150.0,0.00024074,4]
[370399657,1751998243424,-150.0,0.00024074,4]
[370399658,1751998243434,-150.0,0.00024074,4]
[370399660,1751998243443,-150.0,0.00024107,4]
[370399662,1751998243453,-150.0,0.00024121,4]
[370399663,1751998243462,-150.0,0.00024126,4]
[370399665,1751998243472,-150.0,0.00024126,4]
[370399666,1751998243482,-1211.10506045,0.00024141,10]
[370399667,1751998243491,-150.0,0.00024143,4]
[370399668,1751998243501,-664.373632,0.00024163,4]
[370399669,1751998243510,-150.0,0.00024193,4]
[370399670,1751998243520,-150.0,0.00024204,4]
[370399671,1751998243530,-150.0,0.00024207,4]
[370399672,1751998243539,-150.0,0.00024212,4]
[370399673,1751998243548,-160.0,0.00024231,2]
[370399674,1751998243558,-197.01,0.00024238,6]
[370399675,1751998243567,-3090.306,0.00024238,6]
[370399676,1751998243576,-151.0,0.00024243,2]
[370399678,1751998243585,-468.12144,0.00024243,2]
[370399679,1751998243595,-150.0,0.00024264,4]
[370399680,1751998243604,-150.0,0.00024282,4]
[370399681,1751998243614,-150.0,0.00024282,4]
[370399682,1751998243623,-150.0,0.00024282,4]
[370399683,1751998243638,-500.0,0.000243,8]
[370399684,1751998243650,-150.0,0.00024306,4]
[370399685,1751998243661,-18634.47170744,0.00024325,2]
[370399686,1751998243742,-2219.99921,0.00024325,2]
[370399689,1751998245896,-3675.07,0.00024325,2]
[370399690,1751998245947,-886.92592257,0.00024325,2]
[370399691,1751998246053,-2164.72079999,0.00024325,2]
[370399692,1751998246065,-2948.28779171,0.00024325,2]
[370399696,1751998322629,460.0,0.00027397,120]
[370399697,1751998322916,460.0,0.00027397,120]
[370399698,1751998323141,460.0,0.00027397,120]
[370399699,1751998323390,460.0,0.00027397,120]
[370399700,1751998323642,210.97243476,0.00027397,120]
[370399701,1751998330171,200.0,0.00029394,120]
[370399702,1751998353967,180.0,0.00029,120]
[370399703,1751998407556,444.01,0.00026317,120]
[370399704,1751998408008,444.01,0.00029241,120]
[370399706,1751998496947,1000.0,0.00030136,120]
[370399707,1751998507740,-150.0,0.00022,2]
[370399708,1751998507763,-301.91623413,0.00022135,2]
[370399709,1751998507785,-250.0,0.00022235,2]
[370399710,1751998507809,-150.0,0.0002247,2]
[370399711,1751998507831,-150.0,0.0002294,2]
[370399712,1751998507855,-444.01,0.00023393,2]
[370399713,1751998507877,-150.0,0.0002341,2]
[370399714,1751998507901,-150.0,0.0002388,2]
[370399715,1751998507925,-298.43400151,0.0002409,2]
[370399716,1751998507947,-200.0,0.000241,7]
[370399717,1751998507970,-628.456093,0.00024149,4]
[370399718,1751998507992,-250.0,0.000242,2]
[370399719,1751998508015,-160.0,0.0002423,2]
[370399720,1751998508038,-1095.0,0.000243,2]
[370399721,1751998508059,-294.18367136,0.00024315,2]
[370399722,1751998533028,-61.18443401,0.00024315,2]
[370399723,1751998533052,-300.0,0.00024317,2]
[370399724,1751998533074,-1200.0,0.00024317,2]
[370399725,1751998533097,-5235.097479,0.00024318,2]
[370399726,1751998533120,-4370.5859687,0.00024318,2]
[370399727,1751998533145,-573.0537873,0.00024318,2]
[370399728,1751998533169,-8027.5343514,0.00024318,2]
[370399729,1751998533191,-269.0,0.00024324,2]
[370399730,1751998533214,-2472.245,0.00024324,6]
[370399731,1751998533235,-157.608,0.00024324,6]
[370399732,1751998533257,-19631.69097959,0.00024325,2]
[370399733,1751998566066,150.0,0.0003013,120]
[370399735,1751998707991,150.5,0.00026017,120]
[370399736,1751998708446,150.5,0.00026007,120]
[370399737,1751998711716,150.5,0.00025997,120]
[370399738,1751998712168,209.68,0.0002644,120]
[370399739,1751998743962,152.0,0.00029,120]
[370399741,1751998804433,150.0,0.0003013,120]
[370399742,1751998833527,150.0,0.0003013,120]
[370399743,1751998943297,295.8692331,0.00029041,120]
[370399744,1751998949122,180.0,0.00029,120]
[370399745,1751999030037,150.0,0.00027534,120]
[370399746,1751999030114,182.71539364,0.00027671,120]
[370399749,1751999215920,159.08,0.00013699,2]
[370399750,1751999216145,460.0,0.00027397,120]
[370399751,1751999216477,460.0,0.00027397,120]
[370399752,1751999216799,460.0,0.00027397,120]
[370399753,1751999217131,460.0,0.00027397,120]
[370399754,1751999217337,210.97243476,0.00027397,120]
[370399755,1751999251104,200.0,0.00029392,120]
[370399757,1751999264024,5218.47418386,0.00018,2]
[370399759,1751999305731,289.82499214,0.00030137,120]
[370399760,1751999305988,1000.0,0.00030136,120]
[370399762,1751999332202,360.27565828,0.00010136,2]
[370399763,1751999332537,1289.58820646,0.00013368,2]
[370399764,1751999333216,165.42709425,0.00027397,120]
[370399766,1751999336615,301.38353983,0.0002465,120]
[370399767,1751999336960,814.16215886,0.000271,120]
[370399768,1751999336989,225.87678093,0.000301,120]
[370399769,1751999341462,1000.0,0.00030136,120]
[370399771,1751999407209,287.49,0.00025254,120]
[370399772,1751999407428,287.49,0.00028059,120]
[370399775,1751999432261,-1217.34706136,0.00019,2]
[370399776,1751999432272,-6623.36581614,0.000194,2]
[370399777,1751999432282,-1200.0,0.00019999,2]
[370399778,1751999432293,-515.9897196,0.0002,2]
[370399779,1751999432303,-151.0,0.00020687,2]
[370399780,1751999432313,-1076.96165537,0.00021,4]
[370399781,1751999432323,-300.0,0.00021175,2]
[370399782,1751999432332,-1076.96165533,0.00021176,4]
[370399783,1751999432342,-1076.96165533,0.00021452,5]
[370399784,1751999432352,-1076.96165533,0.00021728,5]
[370399785,1751999432361,-1680.0,0.00021881,2]
[370399786,1751999432372,-150.0,0.00022,2]
[370399787,1751999432382,-5595.4651481,0.00022,2]
[370399788,1751999432392,-1076.96165533,0.00022003,6]
[370399789,1751999432402,-177.48142747,0.00022215,2]
[370399790,1751999432412,-1076.96165533,0.00022279,6]
[370399791,1751999432421,-150.0,0.00022315,2]
[370399792,1751999432431,-150.0,0.00022315,2]
[370399793,1751999432441,-150.0,0.00022315,2]
[370399794,1751999432451,-150.0,0.00022315,2]
[370399795,1751999432461,-150.0,0.00022315,2]
[370399796,1751999432471,-150.0,0.00022315,2]
[370399797,1751999432481,-150.0,0.00022315,2]
[370399798,1751999432491,-150.26989642,0.00022315,2]
[370399799,1751999432501,-150.0,0.00022315,2]
[370399800,1751999432511,-287.49,0.00022448,2]
[370399801,1751999432521,-150.0,0.0002247,2]
[370399802,1751999432530,-150.0,0.00022506,4]
[370399803,1751999432540,-150.0,0.0002254,4]
[370399804,1751999432550,-1076.96165533,0.00022555,7]
[370399806,1751999432560,-151.39,0.00022574,2]
[370399808,1751999432570,-150.0,0.00022591,4]
[370399810,1751999432579,-586.27,0.00022665,2]
[370399811,1751999432589,-150.0,0.00022669,4]
[370399812,1751999432599,-150.0,0.00022697,4]
[370399813,1751999432608,-337.85,0.00022713,2]
[370399815,1751999432619,-666.0,0.00022737,2]
[370399817,1751999432629,-150.0,0.00022766,4]
[370399819,1751999432639,-1076.96165533,0.00022831,8]
[370399822,1751999432649,-150.0,0.00022866,4]
[370399824,1751999432659,-150.0,0.00022887,4]
[370399826,1751999432669,-150.0,0.0002294,2]
[370399828,1751999432679,-150.0,0.00022991,4]
[370399830,1751999432689,-200.0,0.00023,2]
[370399832,1751999432699,-150.0,0.00023023,4]
[370399834,1751999432709,-420.0,0.00023029,2]
[370399835,1751999432718,-150.0,0.00023078,4]
[370399836,1751999432727,-1076.96165533,0.00023107,8]
[370399838,1751999432738,-150.0,0.00023142,4]
[370399839,1751999432747,-150.0,0.00023142,4]
[370399841,1751999432757,-150.0,0.00023142,4]
[370399843,1751999432767,-200.0,0.00023153,2]
[370399844,1751999432776,-156.99,0.00023212,2]
[370399846,1751999432785,-150.0,0.00023217,4]
[370399848,1751999432795,-150.0,0.00023269,4]
[370399849,1751999432805,-1976.51,0.00023349,2]
[370399850,1751999432815,-4031.856,0.00023368,2]
[370399851,1751999432824,-207.4,0.00023368,2]
[370399852,1751999432834,-250.0,0.00023377,2]
[370399853,1751999432844,-150.0,0.00023378,4]
[370399854,1751999432854,-990.86,0.00023382,2]
[370399855,1751999432864,-1000.0,0.00023382,2]
[370399856,1751999432875,-1076.96165533,0.00023383,9]
[370399857,1751999432884,-150.0,0.0002341,2]
[370399858,1751999432894,-150.0,0.00023417,4]
[370399859,1751999432904,-1582.38718468,0.00023423,2]
[370399860,1751999432917,-699.17441116,0.00023423,2]
[370399861,1751999432965,-646.01866622,0.00023423,2]
[370399862,1751999432977,-1253.45440994,0.00023423,2]
[370399863,1751999432990,-150.0,0.00023442,4]
[370399864,1751999433000,-150.0,0.00023459,4]
[370399865,1751999433011,-255.2,0.00023469,2]
[370399866,1751999433020,-4335.73295486,0.00023478,2]
[370399867,1751999433031,-4496.15507419,0.00023533,2]
[370399868,1751999433041,-150.0,0.00023555,4]
[370399869,1751999433051,-340.9077743,0.00023588,2]
[370399870,1751999433318,-225.11445293,0.00023588,2]
[370399871,1751999433328,-150.0,0.0002365,4]
[370399872,1751999433338,-333.93805216,0.00023659,9]
[370399873,1751999433355,-445.71581389,0.00023659,9]
[370399874,1751999433366,-297.30778928,0.00023659,9]
[370399875,1751999433377,-150.0,0.00023667,4]
[370399876,1751999433387,-150.0,0.00023693,4]
[370399877,1751999433397,-150.0,0.00023732,4]
[370399878,1751999433408,-697.51833433,0.000238,2]
[370399879,1751999433678,-838.12174944,0.000238,2]
[370399888,1751999438200,-464.35991623,0.000238,2]
[370399889,1751999438211,-517.95144877,0.000238,8]
[370399890,1751999438223,-182.04855123,0.000238,8]
[370399891,1751999438233,-245.29,0.00023836,2]
[370399892,1751999438242,-150.0,0.00023841,4]
[370399893,1751999438252,-150.0,0.0002388,2]
[370399894,1751999438261,-150.0,0.00023893,4]
[370399895,1751999438271,-1400.0,0.000239,8]
[370399896,1751999438281,-1076.96165533,0.00023934,10]
[370399897,1751999438290,-994.0,0.00023941,2]
[370399898,1751999438300,-150.0,0.00023968,4]
[370399899,1751999438309,-150.0,0.00023968,4]
[370399900,1751999438319,-150.0,0.00023968,4]
[370399901,1751999438328,-2452.88647117,0.00024,5]
[370399902,1751999438339,-1360.011401,0.00024,5]
[370399903,1751999438365,-816.006401,0.00024,5]
[370399904,1751999438439,-2817.1143864,0.00024,5]
[370399905,1751999438451,-13908.37134043,0.00024,5]
[370399906,1751999438460,-150.0,0.00024032,4]
[370399907,1751999438471,-168.07,0.00024078,2]
[370399908,1751999438480,-390.1012,0.0002408,2]
[370399910,1751999438491,-150.0,0.00024086,4]
[370399912,1751999438500,-447.0,0.00024109,3]
[370399913,1751999438509,-150.0,0.00024118,4]
[370399914,1751999438518,-549.899082,0.00024149,4]
[370399915,1751999438527,-390.10121,0.0002415,2]
[370399917,1751999438536,-464.36378949,0.00024203,2]
[370399918,1751999438545,-160.0,0.00024203,2]
[370399919,1751999438555,-300.0,0.00024203,2]
[370399920,1751999438565,-300.0,0.00024203,2]
[370399921,1751999438574,-300.0,0.00024203,2]
[370399922,1751999438583,-300.0,0.00024203,2]
[370399923,1751999438593,-300.0,0.00024203,2]
[370399925,1751999438602,-300.0,0.00024203,2]
[370399927,1751999438612,-299.999999,0.00024203,2]
[370399929,1751999438621,-1076.96165533,0.0002421,10]
[370399931,1751999438631,-151.39,0.00024211,2]
[370399932,1751999438641,-160.0,0.00024217,2]
[370399934,1751999438650,-609.0836,0.00024218,2]
[370399936,1751999438660,-2500.0,0.00024218,2]
[370399938,1751999438669,-5000.0,0.00024218,2]
[370399940,1751999438678,-156.1582459,0.00024218,2]
[370399941,1751999438688,-150.44252578,0.00024218,2]
[370399943,1751999438697,-164.56607121,0.00024218,2]
[370399944,1751999438706,-2255.97726446,0.00024218,2]
[370399945,1751999438715,-150.0,0.00024222,4]
[370399946,1751999438725,-150.44252568,0.00024242,2]
[370399947,1751999438734,-150.0,0.00024244,4]
[370399948,1751999438743,-150.44252568,0.00024266,2]
[370399949,1751999438752,-812.39,0.00024273,2]
[370399950,1751999438762,-926.18,0.00024273,2]
[370399951,1751999438771,-1977.796,0.00024286,6]
[370399952,1751999438781,-157.608,0.00024286,6]
[370399953,1751999438790,-150.44252568,0.00024291,2]
[370399954,1751999438799,-1000.0,0.000243,2]
[370399955,1751999438809,-153.97,0.00024309,2]
[370399956,1751999438818,-218.0384141,0.00024309,2]
[370399957,1751999438827,-15450.20302526,0.00024314,7]
[370399958,1751999438839,-77100.0,0.00024314,7]
[370399959,1751999438850,-16104.0,0.00024314,7]
[370399960,1751999438862,-10290.0,0.00024314,7]
[370399961,1751999438873,-23500.0,0.00024314,7]
[370399962,1751999438960,-353.57152653,0.00024314,7]
[370399963,1751999438971,-2100.0,0.00024314,7]
[370399964,1751999438986,-264.59002921,0.00024314,7]
[370399975,1751999440454,-347.9600001,0.00024314,7]
[370399976,1751999440725,-6976.6393651,0.00024314,7]
[370399997,1751999443432,-68433.82255482,0.00024314,7]
[370399998,1751999443444,-98126.945206,0.00024314,7]
[370399999,1751999443455,-1151.72578253,0.00024314,7]
[370400007,1751999446843,-59691.01816949,0.00024314,7]
[370400008,1751999446874,-417.81012156,0.00024314,7]
[370400009,1751999446886,-4841.15760001,0.00024314,7]
[370400010,1751999447016,-580.80621032,0.00024218,2]
[370400011,1751999447028,-1199.27450407,0.00024218,2]